bitfinex/quotes_SOLUSD_20250518
["timestamp","ask_amount","ask_price","bid_price","bid_amount"]
[1747600663061,17.75976611,166.25,166.18,15.04392827]
[1747600663432,17.75976611,166.23,166.17,6.01793344]
[1747600663641,17.75976611,166.22,166.17,6.01793344]
[1747600663841,17.75976611,166.21,166.15,15.04602924]
[1747600664938,105.96515748,166.24,166.15,15.04602924]
[1747600665234,17.75976611,166.21,166.15,15.04602924]
[1747600665562,105.96515748,166.24,166.14,6.0190201]
[1747600665563,17.75976611,166.17,166.14,6.0190201]
[1747600665763,17.75976611,166.16,166.11,6.02010715]
[1747600666062,17.75976611,166.17,166.11,6.02010715]
[1747600666353,70.12964886,166.2,166.11,21.07037504]
[1747600666531,43.23976611,166.2,166.11,47.07037504]
[1747600667662,17.75976611,166.18,166.11,47.07037504]
[1747600668046,17.75976611,166.18,166.11,21.07037504]
[1747600669851,17.75976611,166.18,166.11,15.05026789]
[1747600670059,36.40941497,166.19,166.11,15.05026789]
[1747600670262,18.64964886,166.19,166.11,15.05026789]
[1747600670469,36.40941497,166.19,166.11,15.05026789]
[1747600671568,25.54,166.21,166.11,15.05026789]
[1747600671863,25.54,166.21,166.14,21.06657035]
[1747600673367,17.75976611,166.2,166.14,21.06657035]
[1747600673536,17.75976611,166.2,166.14,6.0190201]
[1747600673537,18.64964886,166.2,166.14,6.0190201]
[1747600673740,17.75976611,166.19,166.14,6.0190201]
[1747600676161,17.75976611,166.18,166.14,6.0190201]
[1747600677061,18.64964886,166.2,166.14,6.0190201]
[1747600677241,17.75976611,166.18,166.14,6.0190201]
[1747600677447,17.75976611,166.19,166.14,6.0190201]
[1747600677972,25.54,166.21,166.14,6.0190201]
[1747600678352,25.54,166.21,166.14,21.06657035]
[1747600679247,81.3,166.24,166.15,4.66495589]
[1747600679463,25.54,166.26,166.17,26.0]
[1747600679951,25.54,166.26,166.18,21.06149957]
[1747600680158,43.29976611,166.26,166.18,21.06149957]
[1747600681979,25.54,166.26,166.18,21.06149957]
[1747600682273,27.59496611,166.29,166.19,1.20327758]
[1747600682441,17.75976611,166.26,166.18,21.06149957]
[1747600682646,17.75976611,166.25,166.18,21.06149957]
[1747600682967,17.75976611,166.21,166.18,6.0175713]
[1747600683164,17.75976611,166.22,166.18,6.0175713]
[1747600683354,81.3,166.24,166.18,6.0175713]
[1747600683554,17.75976611,166.23,166.18,6.0175713]
[1747600683963,17.75976611,166.22,166.18,6.0175713]
[1747600684269,17.75976611,166.22,166.16,6.01829561]
[1747600684582,99.05976611,166.24,166.16,21.06403465]
[1747600685370,17.75976611,166.23,166.16,21.06403465]
[1747600685672,36.40941497,166.23,166.16,21.06403465]
[1747600685974,17.75976611,166.23,166.16,21.06403465]
[1747600686278,99.05976611,166.24,166.16,21.06403465]
[1747600686786,18.64964886,166.21,166.16,6.01829561]
[1747600686977,17.75976611,166.2,166.16,6.01829561]
[1747600687176,36.40941497,166.21,166.16,6.01829561]
[1747600688224,36.40941497,166.21,166.14,21.06657035]
[1747600688670,25.38,166.23,166.14,21.06657035]
[1747600688976,25.38,166.23,166.14,47.06657035]
[1747600689846,25.38,166.23,166.14,78.36509585]
[1747600690153,18.64964886,166.26,166.18,21.06149957]
[1747600691278,17.75976611,166.27,166.18,21.06149957]
[1747600691447,17.75976611,166.26,166.18,21.06149957]
[1747600691647,28.41235819,166.26,166.18,21.06149957]
[1747600691850,47.06200705,166.27,166.18,21.06149957]
[1747600693083,28.41235819,166.26,166.18,21.06149957]
[1747600693288,28.41235819,166.21,166.18,6.0175713]
[1747600693881,18.64964886,166.22,166.13,47.23751425]
[1747600693882,28.41235819,166.2,166.13,47.23751425]
[1747600694090,107.3,166.24,166.14,21.06657035]
[1747600694382,47.06200705,166.22,166.14,21.06657035]
[1747600694555,28.41235819,166.2,166.14,21.06657035]
[1747600694887,47.06200705,166.22,166.14,21.06657035]
[1747600696502,18.64964886,166.22,166.14,21.06657035]
[1747600696665,47.06200705,166.22,166.14,21.06657035]
[1747600697177,81.3,166.24,166.16,26.0]
[1747600697360,44.02964886,166.25,166.14,47.06657035]
[1747600697565,25.38,166.25,166.15,1.20357929]
[1747600697786,53.79235819,166.25,166.14,47.06657035]
[1747600697977,53.79235819,166.25,166.17,26.0]
[1747600698187,25.38,166.25,166.18,21.06149957]
[1747600698983,47.06200705,166.27,166.18,21.06149957]
[1747600699186,28.41235819,166.26,166.18,21.06149957]
[1747600699494,47.06200705,166.25,166.18,21.06149957]
[1747600700491,18.64964886,166.25,166.18,21.06149957]
[1747600701397,28.41235819,166.24,166.18,21.06149957]
[1747600701580,28.41235819,166.23,166.18,6.0175713]
[1747600702273,44.64964886,166.26,166.15,21.06473267]
[1747600702274,28.41235819,166.22,166.15,21.06473267]
[1747600702589,44.64964886,166.26,166.15,21.06473267]
[1747600702590,28.41235819,166.23,166.15,21.06473267]
[1747600702888,81.3,166.25,166.15,21.06473267]
[1747600703587,28.41235819,166.22,166.15,21.06473267]
[1747600704573,28.41235819,166.23,166.15,21.06473267]
[1747600704895,28.41235819,166.22,166.15,21.06473267]
[1747600705188,28.41235819,166.19,166.15,6.01865783]
[1747600705707,28.41235819,166.17,166.14,6.01896394]
[1747600705992,28.41235819,166.18,166.14,6.01896394]
[1747600709405,28.41235819,166.17,166.13,27.25679871]
[1747600709707,6.01695829,166.2,166.13,27.25688629]
[1747600709708,28.41235819,166.16,166.13,27.25688629]
[1747600710303,18.64964886,166.19,166.13,27.25688629]
[1747600710484,28.41235819,166.16,166.13,27.25688629]
[1747600711298,28.41235819,166.17,166.13,27.25688629]
[1747600712193,28.41235819,166.16,166.13,27.25688629]
[1747600712406,28.41235819,166.17,166.13,27.25688629]
[1747600713274,28.41235819,166.18,166.13,27.25688629]
[1747600713475,18.64964886,166.19,166.13,27.25688629]
[1747600713476,47.06200705,166.19,166.13,27.25688629]
[1747600713704,36.42313422,166.19,166.13,27.25688629]
[1747600713886,50.64,166.21,166.13,42.30534231]
[1747600714071,25.38,166.21,166.14,3.3886]
[1747600714383,25.38,166.21,166.14,29.3886]
[1747600714583,43.03348536,166.24,166.14,29.3886]
[1747600714808,25.26,166.24,166.16,26.0]
[1747600715006,25.26,166.24,166.16,27.2032644]
[1747600715182,29.41371896,166.26,166.16,27.2032644]
[1747600715383,29.41371896,166.26,166.17,21.06276704]
[1747600715596,25.24,166.26,166.18,1.20311573]
[1747600715809,18.64964886,166.29,166.18,1.20311573]
[1747600716308,36.42313422,166.29,166.18,1.20311573]
[1747600716885,36.42313422,166.29,166.19,21.06023225]
[1747600717472,26.0,166.3,166.19,47.06023225]
[1747600717679,43.77348536,166.3,166.19,47.06023225]
[1747600718234,17.77348536,166.29,166.19,47.06023225]
[1747600718998,17.77348536,166.28,166.19,47.06023225]
[1747600722399,18.64964886,166.29,166.19,47.06023225]
[1747600722609,36.42313422,166.29,166.19,47.06023225]
[1747600723113,17.77348536,166.29,166.19,47.06023225]
[1747600723292,43.77348536,166.3,166.19,47.06023225]
[1747600723620,43.01348536,166.31,166.22,26.0]
[1747600724282,25.24,166.31,166.22,26.0]
[1747600724514,25.24,166.31,166.24,26.0]
[1747600724916,18.64964886,166.34,166.24,26.0]
[1747600725097,17.77348536,166.34,166.24,26.0]
[1747600725290,17.77348536,166.34,166.25,21.05263157]
[1747600725723,81.3,166.35,166.28,26.0]
[1747600725888,25.24,166.36,166.28,26.0]
[1747600726092,25.24,166.36,166.28,29.2296]
[1747600726292,25.24,166.36,166.29,26.0]
[1747600727012,25.24,166.36,166.3,1.20238618]
[1747600727215,17.77348536,166.39,166.31,21.04503637]
[1747600727392,35.2026,166.41,166.31,21.04503637]
[1747600727728,17.77348536,166.4,166.31,21.04503637]
[1747600727899,35.2026,166.41,166.31,21.04503637]
[1747600728224,17.77348536,166.39,166.31,21.04503637]
[1747600728401,35.2026,166.41,166.31,21.04503637]
[1747600728598,17.77348536,166.39,166.31,21.04503637]
[1747600729117,17.77348536,166.4,166.31,21.04503637]
[1747600729305,17.77348536,166.4,166.31,15.03216884]
[1747600731302,35.2026,166.41,166.31,15.03216884]
[1747600731607,17.77348536,166.4,166.31,15.03216884]
[1747600731816,17.77348536,166.39,166.31,15.03216884]
[1747600732008,35.2026,166.41,166.31,15.03216884]
[1747600732316,15.01895257,166.46,166.32,45.85189453]
[1747600732317,32.10912272,166.45,166.32,45.85189453]
[1747600732499,21.21858536,166.45,166.32,71.01189453]
[1747600732821,3.4451,166.45,166.36,26.0]
[1747600733118,18.64964886,166.47,166.37,3.2433]
[1747600733295,69.00964886,166.48,166.37,3.2433]
[1747600733296,76.36,166.48,166.37,3.2433]
[1747600733497,25.22,166.48,166.38,26.0]
[1747600733713,25.22,166.48,166.39,21.03491796]
[1747600734108,25.22,166.48,166.4,6.4133]
[1747600734325,25.22,166.48,166.4,7.61484326]
[1747600734615,25.22,166.48,166.4,7.61487311]
[1747600735420,25.22,166.48,166.41,26.0]
[1747600735591,17.77348536,166.51,166.41,26.0]
[1747600735795,28.32693814,166.51,166.42,21.03112606]
[1747600736718,25.14,166.52,166.42,21.03112606]
[1747600737023,53.46693814,166.52,166.42,21.03112606]
[1747600737219,28.32693814,166.52,166.42,21.03112606]
[1747600737615,62.6693951,166.53,166.42,21.03112606]
[1747600737811,28.32693814,166.51,166.42,21.03112606]
[1747600738407,62.6693951,166.53,166.42,21.03112606]
[1747600738609,28.32693814,166.51,166.42,21.03112606]
[1747600739425,28.32693814,166.52,166.42,21.03112606]
[1747600739627,62.6493951,166.53,166.42,21.03112606]
[1747600739806,28.32693814,166.52,166.42,21.03112606]
[1747600741004,28.32693814,166.51,166.42,21.03112606]
[1747600741305,28.32693814,166.52,166.42,21.03112606]
[1747600742551,37.54946338,166.53,166.46,26.0]
[1747600742552,25.22,166.53,166.46,26.0]
[1747600743444,3.2028,166.56,166.46,26.0]
[1747600743635,6.7018,166.57,166.47,1.20098175]
[1747600743810,53.52693814,166.58,166.47,1.20098175]
[1747600744130,28.32693814,166.57,166.48,26.0]
[1747600744436,28.32693814,166.57,166.49,6.00636674]
[1747600744636,25.2,166.58,166.49,6.00636674]
[1747600744806,28.32693814,166.56,166.49,21.02228361]
[1747600745235,25.2,166.58,166.49,21.02228361]
[1747600745416,53.52693814,166.58,166.49,21.02228361]
[1747600745921,25.2,166.58,166.49,21.02228361]
[1747600746123,53.52693814,166.58,166.49,21.02228361]
[1747600746335,25.2,166.58,166.49,21.02228361]
[1747600746655,28.32693814,166.57,166.49,21.02228361]
[1747600746813,28.32693814,166.56,166.49,21.02228361]
[1747600747015,25.2,166.58,166.49,21.02228361]
[1747600747405,28.32693814,166.57,166.49,21.02228361]
[1747600747636,25.2,166.58,166.49,24.06044832]
[1747600747826,28.32693814,166.57,166.49,24.06044832]
[1747600748613,25.2,166.58,166.49,24.06044832]
[1747600749132,53.52693814,166.58,166.49,24.06044832]
[1747600750414,28.32693814,166.57,166.49,24.06044832]
[1747600750923,25.2,166.58,166.49,25.26135648]
[1747600751115,25.2,166.58,166.49,55.29319022]
[1747600751310,25.2,166.58,166.49,54.09228206]
[1747600751836,28.32693814,166.6,166.49,55.29309764]
[1747600752038,9.9046,166.61,166.52,26.0]
[1747600752221,8.97566985,166.72,166.57,26.0]
[1747600752421,28.32693814,166.71,166.58,1.20032835]
[1747600752644,26.0,166.71,166.58,1.20032835]
[1747600752841,28.32693814,166.71,166.58,1.20032835]
[1747600753161,9.9754,166.74,166.58,1.20032835]
[1747600753455,9.9754,166.74,166.62,26.0]
[1747600753665,9.9754,166.74,166.63,1.19983582]
[1747600753818,9.9754,166.74,166.63,6.00132029]
[1747600754125,6.5514,166.74,166.64,3.4244]
[1747600754450,25.02,166.76,166.64,4.624188]
[1747600754647,28.32693814,166.76,166.64,4.624188]
[1747600755139,28.32693814,166.71,166.64,3.4244]
[1747600755337,28.32693814,166.72,166.63,27.42982101]
[1747600755646,28.32693814,166.73,166.63,27.42982101]
[1747600755945,31.01694303,166.76,166.63,27.42982101]
[1747600756243,28.32693814,166.71,166.63,6.00132029]
[1747600756949,9.6561,166.68,166.6,6.00240096]
[1747600757129,28.32693814,166.63,166.57,21.19179652]
[1747600757320,28.32693814,166.62,166.58,6.00312162]
[1747600757628,28.32693814,166.62,166.57,21.19179652]
[1747600757831,28.32693814,166.63,166.57,27.19525331]
[1747600758429,56.99994826,166.67,166.57,27.19525331]
[1747600758742,28.32693814,166.63,166.57,27.19525331]
[1747600759046,28.32693814,166.62,166.57,27.19525331]
[1747600760729,51.0,166.67,166.57,27.19525331]
[1747600761042,28.32693814,166.63,166.57,42.20395835]
[1747600761238,50.02,166.67,166.57,42.20395835]
[1747600761437,28.32693814,166.65,166.57,42.20395835]
[1747600761623,28.32693814,166.62,166.57,27.19525331]
[1747600762245,18.64964886,166.66,166.57,27.19525331]
[1747600762420,28.32693814,166.63,166.57,27.19525331]
[1747600762932,50.02,166.67,166.57,21.01216183]
[1747600763135,28.32693814,166.64,166.57,21.01216183]
[1747600763642,28.32693814,166.63,166.57,21.01216183]
[1747600763821,24.98,166.66,166.57,21.01216183]
[1747600764239,25.04,166.67,166.57,21.01216183]
[1747600764430,53.30693814,166.66,166.57,21.01216183]
[1747600764821,28.32693814,166.66,166.57,21.01216183]
[1747600765327,50.02,166.67,166.57,21.01216183]
[1747600765929,25.04,166.67,166.57,52.22987655]
[1747600766333,25.04,166.67,166.6,26.0]
[1747600767953,25.04,166.67,166.61,21.00714242]
[1747600768720,53.36693814,166.67,166.61,21.00714242]
[1747600768925,53.36693814,166.67,166.61,6.00204069]
[1747600769125,28.32693814,166.62,166.55,6.00420294]
[1747600769350,28.32693814,166.57,166.55,6.00420294]
[1747600769528,24.96,166.63,166.55,6.00420294]
[1747600769730,28.32693814,166.59,166.55,6.00420294]
[1747600770049,28.32693814,166.6,166.55,6.00420294]
[1747600770226,30.96133125,166.63,166.55,6.00420294]
[1747600770428,24.96,166.63,166.55,6.00420294]
[1747600770731,24.96,166.63,166.55,21.01471029]
[1747600771146,24.96,166.63,166.55,48.21517146]
[1747600771529,53.28693814,166.63,166.55,48.21517146]
[1747600771854,24.96,166.63,166.55,47.01471029]
[1747600773655,24.96,166.63,166.55,48.21516537]
[1747600773858,25.04,166.67,166.59,21.00966444]
[1747600774153,78.30693814,166.67,166.59,21.00966444]
[1747600774759,25.04,166.67,166.6,1.20028728]
[1747600774974,224.6,166.73,166.62,26.0]
[1747600775265,24.92,166.72,166.62,26.0]
[1747600775857,28.32693814,166.71,166.63,21.00462101]
[1747600776668,24.92,166.72,166.63,21.00462101]
[1747600777259,24.92,166.72,166.63,51.01122246]
[1747600777460,24.92,166.72,166.64,1.19981712]
[1747600777969,24.92,166.72,166.65,21.00210021]
[1747600778472,24.92,166.75,166.66,3.3896]
[1747600778670,53.24693814,166.77,166.66,3.3896]
[1747600779974,53.24693814,166.77,166.67,20.99958]
[1747600780179,24.92,166.77,166.67,22.19913897]
[1747600780553,24.92,166.77,166.67,26.57102737]
[1747600780745,24.92,166.77,166.67,57.43074908]
[1747600781363,24.92,166.77,166.68,26.0]
[1747600781562,24.92,166.77,166.7,26.0]
[1747600782083,24.92,166.77,166.71,20.99454141]
[1747600783372,28.32693814,166.75,166.71,5.9984404]
[1747600783788,28.32693814,166.73,166.69,5.99916011]
[1747600784281,28.32693814,166.73,166.68,5.99952003]
[1747600784462,24.9,166.74,166.68,5.99952003]
[1747600784668,53.22693814,166.74,166.68,5.99952003]
[1747600785077,24.9,166.74,166.68,5.99952003]
[1747600785257,28.32693814,166.73,166.68,5.99952003]
[1747600785457,28.32693814,166.7,166.67,0.8603217]
[1747600785662,31.4432,166.74,166.67,21.85990132]
[1747600785871,59.77013814,166.74,166.67,21.85990132]
[1747600786068,3.3623,166.75,166.67,21.85990132]
[1747600786960,34.87013814,166.76,166.67,21.85990132]
[1747600787775,28.32693814,166.75,166.67,21.85990132]
[1747600788380,59.75013814,166.76,166.67,21.85990132]
[1747600791385,28.32693814,166.75,166.67,21.85990132]
[1747600792177,28.32693814,166.74,166.67,21.85990132]
[1747600792482,24.64665035,166.75,166.67,6.86020132]
[1747600792683,3.3623,166.79,166.67,21.85990132]
[1747600792889,28.32693814,166.78,166.68,1.19959279]
[1747600793314,31.68923814,166.79,166.68,1.19959279]
[1747600793482,28.32693814,166.78,166.67,51.85930133]
[1747600793665,28.32693814,166.77,166.67,51.85930133]
[1747600793990,31.68923814,166.79,166.68,1.19960216]
[1747600794174,3.3623,166.79,166.68,1.19960216]
[1747600794374,24.86,166.78,166.68,1.19960216]
[1747600794591,24.86,166.78,166.69,20.9970604]
[1747600796305,53.18693814,166.78,166.69,20.9970604]
[1747600796464,28.32693814,166.77,166.69,20.9970604]
[1747600797602,24.86,166.78,166.69,20.9970604]
[1747600797891,24.86,166.78,166.69,22.1965945]
[1747600798397,24.86,166.78,166.69,20.9970604]
[1747600798597,24.86,166.78,166.69,14.99790029]
[1747600799489,56.52923814,166.79,166.69,14.99790029]
[1747600799876,28.32693814,166.78,166.69,14.99790029]
[1747600800371,28.32693814,166.75,166.69,14.99790029]
[1747600800575,28.32693814,166.75,166.68,5.99952003]
[1747600800576,28.32693814,166.73,166.68,5.99952003]
[1747600800769,28.32693814,166.72,166.67,6.86011079]
[1747600801387,6.8093,166.73,166.67,0.8603217]
[1747600801592,28.32693814,166.72,166.67,6.86017625]
[1747600801902,6.8093,166.73,166.67,6.86011429]
[1747600802200,17.66042181,166.71,166.67,0.8603217]
[1747600802590,17.66042181,166.68,166.67,0.8603217]
[1747600802970,9.34732918,166.71,166.67,0.8603217]
[1747600803175,17.66042181,166.68,166.67,0.8603217]
[1747600803814,75.19795782,166.68,166.6,6.00232036]
[1747600803981,28.27415448,166.61,166.55,3.3254]
[1747600804178,28.27415448,166.61,166.55,26.0]
[1747600804385,28.27415448,166.6,166.55,26.0]
[1747600804800,28.27415448,166.59,166.52,21.59261777]
[1747600805111,28.27415448,166.57,166.53,6.00492403]
[1747600805612,28.27415448,166.56,166.52,27.59783074]
[1747600805910,18.64964886,166.52,166.39,6.00997656]
[1747600806204,28.27415448,166.48,166.39,6.00997656]
[1747600806500,49.64,166.51,166.4,26.0]
[1747600806698,28.27415448,166.49,166.41,6.00925425]
[1747600806901,28.27415448,166.47,166.37,8.42792705]
[1747600807104,28.27415448,166.43,166.37,8.42792705]
[1747600807278,28.27415448,166.41,166.37,8.42792705]
[1747600807617,28.27415448,166.39,166.37,8.42792705]
[1747600808092,28.27415448,166.4,166.37,8.42792705]
[1747600808484,24.82,166.42,166.37,8.42792705]
[1747600808704,28.27415448,166.39,166.37,8.42792705]
[1747600808882,24.82,166.42,166.36,6.01101457]
[1747600808883,28.27415448,166.4,166.36,6.01101457]
[1747600809086,28.27415448,166.39,166.35,21.3139786]
[1747600809307,28.27415448,166.39,166.35,53.32532408]
[1747600809491,28.27415448,166.39,166.35,27.32532408]
[1747600809810,28.27415448,166.39,166.35,53.32532408]
[1747600809980,28.27415448,166.38,166.35,53.32532408]
[1747600810480,28.27415448,166.4,166.35,53.32532408]
[1747600810680,24.82,166.42,166.35,53.32532408]
[1747600810891,28.27415448,166.39,166.35,53.32532408]
[1747600811087,28.27415448,166.38,166.35,53.32532408]
[1747600811307,28.27415448,166.37,166.35,21.3139786]
[1747600811492,28.27415448,166.36,166.35,21.3139786]
[1747600812206,28.27415448,166.37,166.35,21.3139786]
[1747600812393,28.27415448,166.39,166.35,27.32521627]
[1747600812890,28.27415448,166.38,166.35,27.32521627]
[1747600813104,28.27415448,166.37,166.35,21.3139786]
[1747600813484,28.27415448,166.36,166.35,21.3139786]
[1747600813683,53.11415448,166.36,166.25,15.03740942]
[1747600813982,53.11415448,166.36,166.28,26.0]
[1747600813983,28.27415448,166.33,166.28,26.0]
[1747600814322,28.27415448,166.29,166.25,6.01503759]
[1747600814484,28.27415448,166.3,166.25,6.01503759]
[1747600814793,28.27415448,166.31,166.25,6.01503759]
[1747600815503,34.44329006,166.4,166.25,21.05263157]
[1747600815706,28.27415448,166.33,166.25,21.05263157]
[1747600815881,130.81962542,166.39,166.25,21.05263157]
[1747600816088,28.27415448,166.34,166.25,21.05263157]
[1747600816309,28.27415448,166.33,166.25,21.05263157]
[1747600816680,28.27415448,166.34,166.25,21.05263157]
[1747600817206,28.27415448,166.33,166.25,21.05263157]
[1747600817712,53.13415448,166.32,166.25,21.05263157]
[1747600817919,28.27415448,166.31,166.25,6.01503759]
[1747600818284,24.84,166.31,166.25,6.01503759]
[1747600818601,53.11415448,166.31,166.25,6.01503759]
[1747600818814,28.27415448,166.3,166.25,6.01503759]
[1747600819421,28.27415448,166.28,166.25,6.01503759]
[1747600820117,28.27415448,166.27,166.23,6.01544068]
[1747600820317,49.50255388,166.31,166.2,6.01684717]
[1747600820318,28.27415448,166.26,166.2,6.01684717]
[1747600820486,53.15415448,166.25,166.2,6.01684717]
[1747600820689,24.88,166.25,166.2,6.01684717]
[1747600821994,53.15415448,166.25,166.2,6.01684717]
[1747600822319,28.27415448,166.24,166.2,6.01684717]
[1747600822496,53.15415448,166.25,166.2,6.01684717]
[1747600823513,24.88,166.25,166.2,21.0589651]
[1747600824113,28.27415448,166.24,166.2,6.01684717]
[1747600824290,28.27415448,166.22,166.2,6.01684717]
[1747600824617,28.27415448,166.23,166.2,6.01684717]
[1747600825006,24.84,166.24,166.2,6.01684717]
[1747600826115,24.84,166.24,166.19,15.04246233]
[1747600829297,53.11415448,166.24,166.18,6.0175713]
[1747600829499,28.27415448,166.23,166.18,6.0175713]
[1747600830219,24.88,166.25,166.18,21.06149957]
[1747600830512,49.72,166.25,166.18,21.06149957]
[1747600830723,28.27415448,166.24,166.18,21.06149957]
[1747600830930,28.27415448,166.23,166.18,6.0175713]
[1747600831095,28.27415448,166.22,166.18,6.0175713]
[1747600831611,28.27415448,166.23,166.18,6.0175713]
[1747600832319,18.64964886,166.24,166.17,52.33420698]
[1747600832320,28.27415448,166.21,166.17,58.35207846]
[1747600832614,28.27415448,166.21,166.13,26.0]
[1747600832615,28.27415448,166.18,166.13,6.01938241]
[1747600832805,53.17415448,166.17,166.13,6.01938241]
[1747600833005,28.27415448,166.16,166.13,6.01938241]
[1747600833324,53.17415448,166.17,166.13,6.01938241]
[1747600833618,24.9,166.17,166.13,6.01938241]
[1747600833823,24.9,166.17,166.13,21.06783843]
[1747600834022,24.9,166.17,166.13,15.04845602]
[1747600837800,24.82,166.21,166.15,26.0]
[1747600838217,24.82,166.21,166.16,6.01829561]
[1747600838614,53.09415448,166.21,166.16,6.01829561]
[1747600839130,46.92380334,166.2,166.13,6.01938241]
[1747600839311,18.64964886,166.2,166.13,6.01938241]
[1747600839635,46.92380334,166.2,166.13,21.06783843]
[1747600839796,53.09415448,166.21,166.13,21.06783843]
[1747600840003,24.82,166.21,166.13,21.06783843]
[1747600840236,53.09415448,166.21,166.13,15.04845602]
[1747600840737,28.27415448,166.2,166.13,15.04845602]
[1747600840943,24.82,166.21,166.14,26.0]
[1747600842514,24.82,166.21,166.15,21.06530242]
[1747600845134,24.82,166.21,166.15,51.15859161]
[1747600845340,24.82,166.21,166.16,3.305]
[1747600845634,77.91415448,166.26,166.16,3.305]
[1747600846034,24.82,166.26,166.17,47.06276704]
[1747600846339,24.82,166.26,166.17,77.15243424]
[1747600846518,24.82,166.26,166.2,26.0]
[1747600846836,249.76,166.29,166.21,27.20307068]
[1747600846837,224.96,166.29,166.21,27.20307068]
[1747600847023,24.82,166.31,166.22,18.64964886]
[1747600847203,24.82,166.31,166.25,26.0]
[1747600848212,24.82,166.31,166.26,21.05136532]
[1747600848533,24.82,166.31,166.26,6.0146758]
[1747600849116,53.09415448,166.31,166.22,6.01612321]
[1747600849627,24.82,166.31,166.22,6.01612321]
[1747600849943,24.82,166.31,166.22,21.05643123]
[1747600850259,28.27415448,166.28,166.22,6.01612321]
[1747600851123,28.27415448,166.29,166.2,21.0589651]
[1747600851746,46.92380334,166.3,166.2,21.0589651]
[1747600852544,18.64964886,166.3,166.2,21.0589651]
[1747600852728,24.8,166.29,166.2,21.0589651]
[1747600854042,18.64964886,166.28,166.2,21.0589651]
[1747600854220,28.27415448,166.27,166.2,6.01684717]
[1747600854425,6.5381,166.28,166.2,21.0589651]
[1747600855332,6.5381,166.28,166.2,15.04211793]
[1747600855645,53.46190334,166.28,166.2,15.04211793]
[1747600856447,25.18774886,166.28,166.2,15.04211793]
[1747600856649,6.5381,166.28,166.2,15.04211793]
[1747600856839,106.08,166.29,166.2,15.04211793]
[1747600857546,134.35415448,166.29,166.2,15.04211793]
[1747600858931,46.92380334,166.28,166.19,6.01720921]
[1747600859244,28.27415448,166.22,166.14,15.04703259]
[1747600859447,28.27415448,166.21,166.14,15.04703259]
[1747600859650,49.6,166.22,166.14,15.04703259]
[1747600860360,49.58,166.26,166.17,26.0]
[1747600860647,24.82,166.26,166.18,1.20318693]
[1747600860953,24.82,166.26,166.2,26.0]
[1747600861250,46.92380334,166.3,166.18,1.20318693]
[1747600861441,28.27415448,166.29,166.19,6.01720921]
[1747600861641,18.64964886,166.3,166.19,6.01720921]
[1747600861838,18.64964886,166.3,166.19,21.06023225]
[1747600862355,52.93716429,166.3,166.19,21.06023225]
[1747600862727,24.66300981,166.3,166.19,21.06023225]
[1747600862931,52.93716429,166.3,166.19,21.06023225]
[1747600863439,24.66300981,166.3,166.19,21.06023225]
[1747600863835,52.93716429,166.3,166.19,21.06023225]
[1747600864553,24.76,166.29,166.19,21.06023225]
[1747600865054,24.76,166.29,166.22,26.0]
[1747600865236,24.82,166.31,166.23,27.20286072]
[1747600865644,24.82,166.31,166.23,26.0]
[1747600866329,24.82,166.31,166.24,21.05389797]
[1747600868559,53.09415448,166.31,166.24,6.01539942]
[1747600868766,24.82,166.31,166.24,6.01539942]
[1747600869261,24.82,166.31,166.24,21.05389797]
[1747600869650,24.82,166.31,166.25,1.20276055]
[1747600870173,24.82,166.31,166.24,21.05389797]
[1747600870559,24.82,166.31,166.24,22.25660543]
[1747600870753,24.82,166.31,166.24,52.33360254]
[1747600870959,56.0642,166.36,166.27,26.0]
[1747600871150,56.0642,166.36,166.27,27.2024566]
[1747600871344,24.74,166.36,166.27,27.2024566]
[1747600871546,24.74,166.36,166.31,26.0]
[1747600871852,225.16,166.39,166.32,26.0]
[1747600872543,225.16,166.39,166.33,6.01214453]
[1747600872962,225.16,166.39,166.33,21.04250585]
[1747600874967,24.74,166.41,166.34,1.20210608]
[1747600875169,24.74,166.41,166.34,4.22523527]
[1747600875349,24.74,166.41,166.33,21.04250585]
[1747600877976,3.4391,166.46,166.37,26.0]
[1747600878174,24.74,166.48,166.38,1.20170951]
[1747600878546,24.74,166.48,166.39,21.03491796]
[1747600880778,24.74,166.48,166.39,15.0249414]
[1747600881161,24.74,166.48,166.42,26.0]
[1747600881878,24.74,166.48,166.39,15.0249414]
[1747600881879,24.74,166.48,166.4,26.0]
[1747600882193,59.02092618,166.48,166.4,26.0]
[1747600882364,24.74,166.48,166.4,26.0]